[Event "Titled Tuesday Blitz April 4 Early 2023"]
[White "Vaibhav Jayant Raut"]
[Black "Gallegos Diaz, Carlos Alberto"]
[WhiteFideId "5089034"]
[BlackFideId "3900886"]
[WhiteElo "2156"]
[BlackElo "2362"]
[Result "1-0"]
[Round "01"]
[TimeControl "180+2"]
[Date "2023.04.04"]
[WhiteClock "0:00:04"]
[BlackClock "0:00:08"]

1. Nf3 {[%clk 0:02:58]}  d6 {[%clk 0:02:59]} 2. d4 {[%clk 0:02:58]}  Nf6 {[%clk 0:02:59]} 3. Nc3 {[%clk 0:02:58]}  c6 {[%clk 0:02:58]} 4. e4 {[%clk 0:02:55]}  Qa5 {[%clk 0:02:57]} 5. Bd2 {[%clk 0:02:54]}  e5 {[%clk 0:02:56]} 6. dxe5 {[%clk 0:02:37]}  dxe5 {[%clk 0:02:57]} 7. Nd5 {[%clk 0:02:34]}  Qd8 {[%clk 0:02:56]} 8. Nxf6+ {[%clk 0:02:34]}  Qxf6 {[%clk 0:02:55]} 9. Bg5 {[%clk 0:02:28]}  Qd6 {[%clk 0:02:54]} 10. Qxd6 {[%clk 0:02:18]}  Bxd6 {[%clk 0:02:54]} 11. O-O-O {[%clk 0:02:19]}  Bc7 {[%clk 0:02:52]} 12. Bc4 {[%clk 0:02:12]}  f6 {[%clk 0:02:33]} 13. Be3 {[%clk 0:02:10]}  Bg4 {[%clk 0:02:32]} 14. Be2 {[%clk 0:02:00]}  Be6 {[%clk 0:02:10]} 15. Nd2 {[%clk 0:01:53]}  Nd7 {[%clk 0:02:09]} 16. Bc4 {[%clk 0:01:47]}  Ke7 {[%clk 0:02:03]} 17. Bxe6 {[%clk 0:01:43]}  Kxe6 {[%clk 0:02:02]} 18. Nc4 {[%clk 0:01:42]}  b5 {[%clk 0:01:58]} 19. Nd2 {[%clk 0:01:41]}  Bb6 {[%clk 0:01:57]} 20. Nf1 {[%clk 0:01:39]}  Rhd8 {[%clk 0:01:51]} 21. c3 {[%clk 0:01:38]}  Bxe3+ {[%clk 0:01:41]} 22. Nxe3 {[%clk 0:01:39]}  Nc5 {[%clk 0:01:40]} 23. f3 {[%clk 0:01:29]}  g6 {[%clk 0:01:21]} 24. Kc2 {[%clk 0:01:24]}  a5 {[%clk 0:01:19]} 25. b3 {[%clk 0:01:19]}  f5 {[%clk 0:01:13]} 26. exf5+ {[%clk 0:01:13]}  gxf5 {[%clk 0:01:14]} 27. Rhe1 {[%clk 0:01:13]}  h5 {[%clk 0:00:55]} 28. g3 {[%clk 0:00:54]}  Rxd1 {[%clk 0:00:51]} 29. Rxd1 {[%clk 0:00:48]}  e4 {[%clk 0:00:39]} 30. fxe4 {[%clk 0:00:31]}  Nxe4 {[%clk 0:00:36]} 31. Ng2 {[%clk 0:00:31]}  Rh8 {[%clk 0:00:25]} 32. Nf4+ {[%clk 0:00:28]}  Kf6 {[%clk 0:00:22]} 33. Ng2 {[%clk 0:00:19]}  Rh7 {[%clk 0:00:18]} 34. Rf1 {[%clk 0:00:19]}  Kg5 {[%clk 0:00:17]} 35. Nh4 {[%clk 0:00:17]}  Rf7 {[%clk 0:00:16]} 36. Nf3+ {[%clk 0:00:18]}  Kh6 {[%clk 0:00:14]} 37. Nd4 {[%clk 0:00:18]}  Kg5 {[%clk 0:00:13]} 38. Nxc6 {[%clk 0:00:15]}  h4 {[%clk 0:00:14]} 39. gxh4+ {[%clk 0:00:14]}  Kxh4 {[%clk 0:00:14]} 40. Ne5 {[%clk 0:00:15]}  Rf6 {[%clk 0:00:14]} 41. Nf3+ {[%clk 0:00:15]}  Kh3 {[%clk 0:00:14]} 42. Nd4 {[%clk 0:00:15]}  Kg2 {[%clk 0:00:14]} 43. Rxf5 {[%clk 0:00:15]}  Rxf5 {[%clk 0:00:13]} 44. Nxf5 {[%clk 0:00:16]}  Kh3 {[%clk 0:00:13]} 45. Nd4 {[%clk 0:00:17]}  Kxh2 {[%clk 0:00:14]} 46. Nxb5 {[%clk 0:00:17]}  Nc5 {[%clk 0:00:14]} 47. b4 {[%clk 0:00:16]}  axb4 {[%clk 0:00:13]} 48. cxb4 {[%clk 0:00:16]}  Na6 {[%clk 0:00:14]} 49. Kb3 {[%clk 0:00:16]}  Kg3 {[%clk 0:00:14]} 50. Ka4 {[%clk 0:00:17]}  Kf4 {[%clk 0:00:14]} 51. Ka5 {[%clk 0:00:17]}  Nb8 {[%clk 0:00:15]} 52. a4 {[%clk 0:00:17]}  Nc6+ {[%clk 0:00:13]} 53. Kb6 {[%clk 0:00:10]}  Nxb4 {[%clk 0:00:14]} 54. Nc7 {[%clk 0:00:08]}  Ke5 {[%clk 0:00:13]} 55. a5 {[%clk 0:00:09]}  Kd6 {[%clk 0:00:14]} 56. Nb5+ {[%clk 0:00:08]}  Kd7 {[%clk 0:00:13]} 57. Kb7 {[%clk 0:00:09]}  Nc6 {[%clk 0:00:11]} 58. a6 {[%clk 0:00:09]}  Nd8+ {[%clk 0:00:11]} 59. Kb6 {[%clk 0:00:06]}  Nc6 {[%clk 0:00:12]} 60. Nc7 {[%clk 0:00:05]}  Nb8 {[%clk 0:00:11]} 61. a7 {[%clk 0:00:04]}  Na6 {[%clk 0:00:08]} 62. Nxa6 {[%clk 0:00:03]}  Kd6 {[%clk 0:00:08]} 63. a8=Q {[%clk 0:00:04]} 1-0


[Site "https://www.chess.com"]

[Event "Titled Tuesday Blitz April 4 Early 2023"]
[White "Todorovic, Bojan"]
[Black "Toropov, Pavel"]
[WhiteFideId "917087"]
[BlackFideId "24129178"]
[WhiteElo "2266"]
[BlackElo "2182"]
[Result "0-1"]
[Round "01"]
[TimeControl "180+2"]
[Date "2023.04.04"]
[WhiteClock "0:00:12"]
[BlackClock "0:00:21"]

1. d4 {[%clk 0:02:58]}  d5 {[%clk 0:02:59]} 2. c4 {[%clk 0:02:56]}  c6 {[%clk 0:03:00]} 3. Nf3 {[%clk 0:02:55]}  Nf6 {[%clk 0:02:59]} 4. e3 {[%clk 0:02:53]}  Bf5 {[%clk 0:02:58]} 5. Nc3 {[%clk 0:02:52]}  e6 {[%clk 0:02:58]} 6. Nh4 {[%clk 0:02:48]}  Be4 {[%clk 0:02:58]} 7. f3 {[%clk 0:02:47]}  Bg6 {[%clk 0:02:58]} 8. Nxg6 {[%clk 0:02:39]}  hxg6 {[%clk 0:02:55]} 9. Bd3 {[%clk 0:02:36]}  Nbd7 {[%clk 0:02:50]} 10. O-O {[%clk 0:02:30]}  Bd6 {[%clk 0:02:47]} 11. f4 {[%clk 0:02:29]}  c5 {[%clk 0:02:45]} 12. cxd5 {[%clk 0:02:24]}  exd5 {[%clk 0:02:44]} 13. Qf3 {[%clk 0:02:14]}  Nb6 {[%clk 0:02:36]} 14. Bd2 {[%clk 0:02:08]}  Rc8 {[%clk 0:02:18]} 15. Rae1 {[%clk 0:02:05]}  Kf8 {[%clk 0:02:14]} 16. Nb5 {[%clk 0:01:57]}  c4 {[%clk 0:01:56]} 17. Nxd6 {[%clk 0:01:50]}  Qxd6 {[%clk 0:01:55]} 18. Bc2 {[%clk 0:01:50]}  Re8 {[%clk 0:01:45]} 19. a3 {[%clk 0:01:35]}  Kg8 {[%clk 0:01:45]} 20. Bb4 {[%clk 0:01:31]}  Qd7 {[%clk 0:01:39]} 21. Bc5 {[%clk 0:01:28]}  Nc8 {[%clk 0:01:39]} 22. e4 {[%clk 0:01:24]}  b6 {[%clk 0:01:31]} 23. Bb4 {[%clk 0:01:06]}  dxe4 {[%clk 0:01:31]} 24. Qe2 {[%clk 0:00:37]}  a5 {[%clk 0:00:47]} 25. Bc3 {[%clk 0:00:36]}  Nd6 {[%clk 0:00:46]} 26. d5 {[%clk 0:00:33]}  Nxd5 {[%clk 0:00:46]} 27. Rd1 {[%clk 0:00:31]}  Nxc3 {[%clk 0:00:44]} 28. bxc3 {[%clk 0:00:32]}  Qe7 {[%clk 0:00:34]} 29. Qe3 {[%clk 0:00:29]}  Nf5 {[%clk 0:00:29]} 30. Qxb6 {[%clk 0:00:29]}  Qh4 {[%clk 0:00:28]} 31. h3 {[%clk 0:00:26]}  Qg3 {[%clk 0:00:28]} 32. Qc6 {[%clk 0:00:16]}  Kh7 {[%clk 0:00:21]} 33. Bxe4 {[%clk 0:00:12]}  Qe3+ {[%clk 0:00:21]} 0-1


[Site "https://www.chess.com"]

[Event "Titled Tuesday Blitz April 4 Early 2023"]
[White "Turayev, Shahruh"]
[Black "Matveeva, Olga"]
[WhiteFideId "14003856"]
[BlackFideId "24107018"]
[WhiteElo "2139"]
[BlackElo "2056"]
[Result "1-0"]
[Round "01"]
[TimeControl "180+2"]
[Date "2023.04.04"]
[WhiteClock "0:00:33"]
[BlackClock "0:00:18"]

1. e4 {[%clk 0:03:00]}  e6 {[%clk 0:02:59]} 2. Nc3 {[%clk 0:03:00]}  d5 {[%clk 0:02:59]} 3. exd5 {[%clk 0:03:01]}  exd5 {[%clk 0:02:59]} 4. d4 {[%clk 0:03:01]}  Nf6 {[%clk 0:02:59]} 5. Bg5 {[%clk 0:03:02]}  Be7 {[%clk 0:02:54]} 6. Bd3 {[%clk 0:03:01]}  h6 {[%clk 0:02:53]} 7. Bh4 {[%clk 0:03:00]}  O-O {[%clk 0:02:51]} 8. Qd2 {[%clk 0:02:57]}  Be6 {[%clk 0:02:47]} 9. O-O-O {[%clk 0:02:53]}  c5 {[%clk 0:02:39]} 10. dxc5 {[%clk 0:02:51]}  Bxc5 {[%clk 0:02:39]} 11. Nge2 {[%clk 0:02:42]}  Nc6 {[%clk 0:02:38]} 12. Rhg1 {[%clk 0:02:39]}  Nb4 {[%clk 0:02:32]} 13. g4 {[%clk 0:02:38]}  Nxd3+ {[%clk 0:02:31]} 14. Qxd3 {[%clk 0:02:37]}  Be7 {[%clk 0:02:28]} 15. g5 {[%clk 0:02:29]}  hxg5 {[%clk 0:02:09]} 16. Bxg5 {[%clk 0:02:26]}  Rc8 {[%clk 0:02:04]} 17. Nf4 {[%clk 0:02:18]}  Qb6 {[%clk 0:01:57]} 18. Bh6 {[%clk 0:01:58]}  Ne8 {[%clk 0:01:40]} 19. Nh5 {[%clk 0:01:41]}  Bf5 {[%clk 0:01:29]} 20. Qxf5 {[%clk 0:01:18]}  Qxh6+ {[%clk 0:01:29]} 21. Kb1 {[%clk 0:01:18]}  Rxc3 {[%clk 0:00:38]} 22. bxc3 {[%clk 0:01:18]}  Ba3 {[%clk 0:00:34]} 23. Rxd5 {[%clk 0:01:07]}  g6 {[%clk 0:00:22]} 24. Rd8 {[%clk 0:00:35]}  Ng7 {[%clk 0:00:18]} 25. Nf6+ {[%clk 0:00:33]} 1-0


[Site "https://www.chess.com"]

[Event "Titled Tuesday Blitz April 4 Early 2023"]
[White "Garrido, Denis"]
[Black "Itgelt, Khuyagtsogt"]
[WhiteFideId "601217"]
[BlackFideId "4902912"]
[WhiteElo "2336"]
[BlackElo "2227"]
[Result "0-1"]
[Round "01"]
[TimeControl "180+2"]
[Date "2023.04.04"]
[WhiteClock "0:01:33"]
[BlackClock "0:01:23"]

1. e4 {[%clk 0:03:00]}  c5 {[%clk 0:02:55]} 2. Nf3 {[%clk 0:02:59]}  d6 {[%clk 0:02:55]} 3. d4 {[%clk 0:02:59]}  cxd4 {[%clk 0:02:56]} 4. Nxd4 {[%clk 0:03:00]}  Nf6 {[%clk 0:02:57]} 5. Nc3 {[%clk 0:03:00]}  a6 {[%clk 0:02:56]} 6. f3 {[%clk 0:03:01]}  e6 {[%clk 0:02:51]} 7. Be3 {[%clk 0:03:00]}  Nbd7 {[%clk 0:02:48]} 8. Qd2 {[%clk 0:03:00]}  b5 {[%clk 0:02:46]} 9. g4 {[%clk 0:02:58]}  h6 {[%clk 0:02:35]} 10. O-O-O {[%clk 0:02:56]}  Bb7 {[%clk 0:02:33]} 11. h4 {[%clk 0:02:54]}  Be7 {[%clk 0:02:26]} 12. Rg1 {[%clk 0:02:53]}  Ne5 {[%clk 0:02:25]} 13. g5 {[%clk 0:02:42]}  hxg5 {[%clk 0:02:25]} 14. hxg5 {[%clk 0:02:43]}  Nfd7 {[%clk 0:02:24]} 15. g6 {[%clk 0:02:43]}  Nc5 {[%clk 0:02:10]} 16. gxf7+ {[%clk 0:02:41]}  Nxf7 {[%clk 0:02:10]} 17. Ncxb5 {[%clk 0:02:27]}  axb5 {[%clk 0:02:09]} 18. Bxb5+ {[%clk 0:02:28]}  Kf8 {[%clk 0:02:08]} 19. a4 {[%clk 0:02:15]}  Qc8 {[%clk 0:01:58]} 20. Rg6 {[%clk 0:02:11]}  e5 {[%clk 0:01:56]} 21. Nf5 {[%clk 0:02:05]}  Nb3+ {[%clk 0:01:56]} 22. Kb1 {[%clk 0:02:04]}  Nxd2+ {[%clk 0:01:57]} 23. Bxd2 {[%clk 0:02:03]}  Bf6 {[%clk 0:01:57]} 24. Bb4 {[%clk 0:02:01]}  Ba6 {[%clk 0:01:39]} 25. Nxd6 {[%clk 0:01:41]}  Nxd6 {[%clk 0:01:38]} 26. Rxd6 {[%clk 0:01:41]}  Kf7 {[%clk 0:01:32]} 27. Bd7 {[%clk 0:01:35]}  Rh1+ {[%clk 0:01:23]} 28. Ka2 {[%clk 0:01:33]}  Qc4+ {[%clk 0:01:23]} 0-1


[Site "https://www.chess.com"]

[Event "Titled Tuesday Blitz April 4 Early 2023"]
[White "Real_taiatai"]
[Black "Kim, Sergey"]
[BlackFideId "13700570"]
[WhiteElo "2328"]
[BlackElo "2615"]
[Result "0-1"]
[Round "01"]
[TimeControl "180+2"]
[Date "2023.04.04"]
[WhiteClock "0:00:19"]
[BlackClock "0:01:27"]

1. b3 {[%clk 0:02:55]}  Nf6 {[%clk 0:02:59]} 2. Bb2 {[%clk 0:02:55]}  g6 {[%clk 0:02:59]} 3. Bxf6 {[%clk 0:02:55]}  exf6 {[%clk 0:02:59]} 4. e4 {[%clk 0:02:55]}  h5 {[%clk 0:02:59]} 5. d4 {[%clk 0:02:55]}  h4 {[%clk 0:02:59]} 6. h3 {[%clk 0:02:55]}  d6 {[%clk 0:02:59]} 7. Nf3 {[%clk 0:02:55]}  Bg7 {[%clk 0:02:54]} 8. Bc4 {[%clk 0:02:54]}  c6 {[%clk 0:02:52]} 9. Nc3 {[%clk 0:02:53]}  Nd7 {[%clk 0:02:47]} 10. a4 {[%clk 0:02:52]}  a5 {[%clk 0:02:46]} 11. Qe2 {[%clk 0:02:23]}  O-O {[%clk 0:02:44]} 12. O-O {[%clk 0:02:16]}  Re8 {[%clk 0:02:42]} 13. Qd2 {[%clk 0:02:13]}  Nf8 {[%clk 0:02:35]} 14. Rfe1 {[%clk 0:02:08]}  f5 {[%clk 0:02:18]} 15. Ng5 {[%clk 0:01:58]}  Ne6 {[%clk 0:02:12]} 16. Nxe6 {[%clk 0:01:25]}  fxe6 {[%clk 0:02:12]} 17. exf5 {[%clk 0:01:24]}  gxf5 {[%clk 0:02:12]} 18. Qf4 {[%clk 0:01:23]}  d5 {[%clk 0:02:08]} 19. Bd3 {[%clk 0:01:23]}  Bd7 {[%clk 0:02:02]} 20. Re2 {[%clk 0:01:23]}  Qf6 {[%clk 0:02:00]} 21. Rae1 {[%clk 0:01:14]}  Qxd4 {[%clk 0:01:57]} 22. Qd6 {[%clk 0:01:11]}  Rad8 {[%clk 0:01:50]} 23. Nb1 {[%clk 0:01:09]}  Bc8 {[%clk 0:01:48]} 24. Qc7 {[%clk 0:01:06]}  Qf6 {[%clk 0:01:42]} 25. f4 {[%clk 0:00:47]}  Qd4+ {[%clk 0:01:28]} 26. Kh1 {[%clk 0:00:19]}  Rd7 {[%clk 0:01:27]} 0-1


[Site "https://www.chess.com"]

[Event "Titled Tuesday Blitz April 4 Early 2023"]
[White "Al-Tarboush, Ward"]
[Black "Leebit02"]
[WhiteFideId "7601450"]
[WhiteElo "2265"]
[BlackElo "2326"]
[Result "0-1"]
[Round "01"]
[TimeControl "180+2"]
[Date "2023.04.04"]
[WhiteClock "0:00:16"]
[BlackClock "0:00:23"]

1. e4 {[%clk 0:03:00]}  c5 {[%clk 0:02:59]} 2. Nf3 {[%clk 0:03:01]}  Nc6 {[%clk 0:02:59]} 3. d4 {[%clk 0:03:01]}  cxd4 {[%clk 0:02:59]} 4. Nxd4 {[%clk 0:03:02]}  Nf6 {[%clk 0:02:59]} 5. Nc3 {[%clk 0:03:02]}  d6 {[%clk 0:02:58]} 6. Bg5 {[%clk 0:03:02]}  e6 {[%clk 0:02:58]} 7. Qd2 {[%clk 0:03:02]}  a6 {[%clk 0:02:58]} 8. O-O-O {[%clk 0:03:02]}  Bd7 {[%clk 0:02:59]} 9. f4 {[%clk 0:03:01]}  Be7 {[%clk 0:02:56]} 10. Nf3 {[%clk 0:03:01]}  b5 {[%clk 0:02:52]} 11. Bxf6 {[%clk 0:03:00]}  gxf6 {[%clk 0:02:52]} 12. Bd3 {[%clk 0:02:58]}  Qb6 {[%clk 0:02:51]} 13. Kb1 {[%clk 0:02:57]}  O-O-O {[%clk 0:02:40]} 14. a3 {[%clk 0:02:37]}  h5 {[%clk 0:02:35]} 15. Na2 {[%clk 0:02:37]}  Kb8 {[%clk 0:02:28]} 16. Nb4 {[%clk 0:02:33]}  Nxb4 {[%clk 0:02:25]} 17. axb4 {[%clk 0:02:34]}  Bc6 {[%clk 0:02:24]} 18. c3 {[%clk 0:02:32]}  d5 {[%clk 0:02:24]} 19. e5 {[%clk 0:02:22]}  Bb7 {[%clk 0:01:43]} 20. Rhe1 {[%clk 0:02:18]}  h4 {[%clk 0:01:42]} 21. Nd4 {[%clk 0:02:16]}  Rdg8 {[%clk 0:01:35]} 22. Nb3 {[%clk 0:01:55]}  Qc7 {[%clk 0:01:33]} 23. Qf2 {[%clk 0:01:49]}  Rh5 {[%clk 0:01:31]} 24. f5 {[%clk 0:01:46]}  fxe5 {[%clk 0:01:28]} 25. fxe6 {[%clk 0:01:47]}  fxe6 {[%clk 0:01:27]} 26. Qf7 {[%clk 0:01:47]}  Rhg5 {[%clk 0:01:19]} 27. Qxe6 {[%clk 0:01:45]}  R8g6 {[%clk 0:01:10]} 28. Qf7 {[%clk 0:01:42]}  Rf6 {[%clk 0:01:07]} 29. Qe8+ {[%clk 0:01:41]}  Ka7 {[%clk 0:01:06]} 30. Na5 {[%clk 0:01:28]}  Rf8 {[%clk 0:01:00]} 31. Qxf8 {[%clk 0:01:14]}  Bxf8 {[%clk 0:00:59]} 32. Rf1 {[%clk 0:01:15]}  Bd6 {[%clk 0:00:57]} 33. Rf6 {[%clk 0:01:13]}  e4 {[%clk 0:00:56]} 34. Bc2 {[%clk 0:01:13]}  Be5 {[%clk 0:00:56]} 35. Rf8 {[%clk 0:01:13]}  Bg7 {[%clk 0:00:49]} 36. Re8 {[%clk 0:01:06]}  Qd7 {[%clk 0:00:48]} 37. Rg8 {[%clk 0:01:04]}  Rxg2 {[%clk 0:00:45]} 38. Bb3 {[%clk 0:00:58]}  Ba8 {[%clk 0:00:40]} 39. Rxa8+ {[%clk 0:00:35]}  Kxa8 {[%clk 0:00:40]} 40. Rxd5 {[%clk 0:00:36]}  Qe8 {[%clk 0:00:33]} 41. Rc5 {[%clk 0:00:33]}  Rd2 {[%clk 0:00:30]} 42. Rc7 {[%clk 0:00:30]}  Rd6 {[%clk 0:00:26]} 43. Rxg7 {[%clk 0:00:18]}  e3 {[%clk 0:00:27]} 44. Rg1 {[%clk 0:00:18]}  e2 {[%clk 0:00:27]} 45. Re1 {[%clk 0:00:19]}  Qe4+ {[%clk 0:00:27]} 46. Bc2 {[%clk 0:00:19]}  Rd1+ {[%clk 0:00:24]} 47. Ka2 {[%clk 0:00:16]}  Qxc2 {[%clk 0:00:23]} 0-1


[Site "https://www.chess.com"]

[Event "Titled Tuesday Blitz April 4 Early 2023"]
[White "Fernandez Siles, Luis"]
[Black "Poliakova, Varvara"]
[WhiteFideId "2209420"]
[BlackFideId "13518313"]
[WhiteElo "2195"]
[BlackElo "2075"]
[Result "0-1"]
[Round "01"]
[TimeControl "180+2"]
[Date "2023.04.04"]
[WhiteClock "0:00:26"]
[BlackClock "0:01:24"]

1. d4 {[%clk 0:02:58]}  f5 {[%clk 0:02:59]} 2. Nc3 {[%clk 0:02:56]}  d5 {[%clk 0:02:58]} 3. Bg5 {[%clk 0:02:53]}  g6 {[%clk 0:02:54]} 4. h4 {[%clk 0:02:52]}  h6 {[%clk 0:02:53]} 5. Bf4 {[%clk 0:02:48]}  Bg7 {[%clk 0:02:50]} 6. Nf3 {[%clk 0:02:44]}  e6 {[%clk 0:02:39]} 7. e3 {[%clk 0:02:25]}  c6 {[%clk 0:02:36]} 8. Ne5 {[%clk 0:02:19]}  Ne7 {[%clk 0:02:34]} 9. Bd3 {[%clk 0:02:17]}  Nd7 {[%clk 0:02:34]} 10. Qf3 {[%clk 0:01:53]}  Nxe5 {[%clk 0:02:33]} 11. Bxe5 {[%clk 0:01:53]}  Bxe5 {[%clk 0:02:31]} 12. dxe5 {[%clk 0:01:54]}  Qc7 {[%clk 0:02:29]} 13. Qg3 {[%clk 0:01:50]}  Bd7 {[%clk 0:02:28]} 14. f4 {[%clk 0:01:49]}  O-O-O {[%clk 0:02:27]} 15. O-O-O {[%clk 0:01:47]}  a6 {[%clk 0:02:17]} 16. Kb1 {[%clk 0:01:39]}  c5 {[%clk 0:02:17]} 17. Be2 {[%clk 0:01:29]}  Rhg8 {[%clk 0:02:13]} 18. Bf3 {[%clk 0:01:23]}  Nc6 {[%clk 0:02:09]} 19. Bxd5 {[%clk 0:01:20]}  exd5 {[%clk 0:02:04]} 20. Nxd5 {[%clk 0:01:20]}  Qa5 {[%clk 0:02:05]} 21. Nf6 {[%clk 0:01:16]}  Be6 {[%clk 0:02:00]} 22. b3 {[%clk 0:01:08]}  Nb4 {[%clk 0:01:54]} 23. a4 {[%clk 0:01:07]}  c4 {[%clk 0:01:41]} 24. Nxg8 {[%clk 0:00:56]}  Rxg8 {[%clk 0:01:41]} 25. Rd6 {[%clk 0:00:50]}  cxb3 {[%clk 0:01:39]} 26. Rxe6 {[%clk 0:00:50]}  Qxa4 {[%clk 0:01:36]} 27. Kc1 {[%clk 0:00:32]}  bxc2 {[%clk 0:01:28]} 28. Kd2 {[%clk 0:00:30]}  Qb3 {[%clk 0:01:25]} 29. Rc1 {[%clk 0:00:28]}  Qxe6 {[%clk 0:01:24]} 30. e4 {[%clk 0:00:26]}  Rd8+ {[%clk 0:01:24]} 31. Ke1 {[%clk 0:00:26]}  Nd3+ {[%clk 0:01:24]} 0-1


[Site "https://www.chess.com"]

[Event "Titled Tuesday Blitz April 4 Early 2023"]
[White "Atanasov, Anthony"]
[Black "Nery Junior, Jose Antonio"]
[WhiteFideId "2623897"]
[BlackFideId "2104822"]
[WhiteElo "2326"]
[BlackElo "2197"]
[Result "1-0"]
[Round "01"]
[TimeControl "180+2"]
[Date "2023.04.04"]
[WhiteClock "0:00:15"]
[BlackClock "0:00:13"]

1. d4 {[%clk 0:03:00]}  d5 {[%clk 0:02:59]} 2. Bf4 {[%clk 0:02:57]}  c5 {[%clk 0:02:59]} 3. Nf3 {[%clk 0:02:57]}  Nc6 {[%clk 0:02:59]} 4. e3 {[%clk 0:02:56]}  Nf6 {[%clk 0:02:58]} 5. Nbd2 {[%clk 0:02:55]}  Bg4 {[%clk 0:02:47]} 6. c3 {[%clk 0:02:54]}  e6 {[%clk 0:02:43]} 7. h3 {[%clk 0:02:53]}  Bxf3 {[%clk 0:02:42]} 8. Nxf3 {[%clk 0:02:52]}  Qb6 {[%clk 0:02:42]} 9. Qc2 {[%clk 0:02:51]}  Rc8 {[%clk 0:02:29]} 10. Qb3 {[%clk 0:02:45]}  Qxb3 {[%clk 0:02:22]} 11. axb3 {[%clk 0:02:46]}  a6 {[%clk 0:02:23]} 12. Bd3 {[%clk 0:02:40]}  Nd7 {[%clk 0:02:18]} 13. O-O {[%clk 0:02:38]}  Be7 {[%clk 0:02:18]} 14. Rfe1 {[%clk 0:02:37]}  O-O {[%clk 0:02:17]} 15. Nd2 {[%clk 0:02:28]}  Rfe8 {[%clk 0:02:12]} 16. Bg3 {[%clk 0:02:04]}  f6 {[%clk 0:02:06]} 17. Nf3 {[%clk 0:02:01]}  g6 {[%clk 0:01:57]} 18. e4 {[%clk 0:01:58]}  Kf7 {[%clk 0:01:45]} 19. exd5 {[%clk 0:01:47]}  exd5 {[%clk 0:01:46]} 20. dxc5 {[%clk 0:01:42]}  Bxc5 {[%clk 0:01:24]} 21. b4 {[%clk 0:01:41]}  Bb6 {[%clk 0:01:11]} 22. b5 {[%clk 0:01:35]}  axb5 {[%clk 0:01:06]} 23. Bxb5 {[%clk 0:01:36]}  Rxe1+ {[%clk 0:01:06]} 24. Nxe1 {[%clk 0:01:31]}  Nde5 {[%clk 0:01:02]} 25. Nc2 {[%clk 0:01:28]}  Rd8 {[%clk 0:00:55]} 26. Rd1 {[%clk 0:01:14]}  Ke7 {[%clk 0:00:50]} 27. Kf1 {[%clk 0:01:09]}  d4 {[%clk 0:00:49]} 28. cxd4 {[%clk 0:01:08]}  Nxd4 {[%clk 0:00:49]} 29. Nxd4 {[%clk 0:01:07]}  Rxd4 {[%clk 0:00:49]} 30. Rc1 {[%clk 0:00:54]}  Rb4 {[%clk 0:00:45]} 31. Bxe5 {[%clk 0:00:48]}  fxe5 {[%clk 0:00:38]} 32. Bd3 {[%clk 0:00:38]}  Rxb2 {[%clk 0:00:38]} 33. Rc2 {[%clk 0:00:35]}  Rb1+ {[%clk 0:00:36]} 34. Ke2 {[%clk 0:00:35]}  Rb3 {[%clk 0:00:36]} 35. Be4 {[%clk 0:00:33]}  Ba5 {[%clk 0:00:33]} 36. Rc5 {[%clk 0:00:31]}  Rb2+ {[%clk 0:00:28]} 37. Kd3 {[%clk 0:00:21]}  b6 {[%clk 0:00:20]} 38. Rxe5+ {[%clk 0:00:18]}  Kf6 {[%clk 0:00:21]} 39. f4 {[%clk 0:00:19]}  Ra2 {[%clk 0:00:16]} 40. Re8 {[%clk 0:00:17]}  Ra3+ {[%clk 0:00:16]} 41. Ke2 {[%clk 0:00:17]}  Bb4 {[%clk 0:00:15]} 42. Rb8 {[%clk 0:00:16]}  Bc5 {[%clk 0:00:14]} 43. Rb7 {[%clk 0:00:16]}  h6 {[%clk 0:00:13]} 44. Bd5 {[%clk 0:00:15]}  Re3+ {[%clk 0:00:13]} 45. Kd2 {[%clk 0:00:15]}  Rg3 {[%clk 0:00:13]} 46. Rf7# {[%clk 0:00:15]} 1-0


[Site "https://www.chess.com"]

[Event "Titled Tuesday Blitz April 4 Early 2023"]
[White "Ovezdurdyyeva, Jemal"]
[Black "Sokac, Marko"]
[WhiteFideId "14001888"]
[BlackFideId "14531356"]
[WhiteElo "2043"]
[BlackElo "2355"]
[Result "0-1"]
[Round "01"]
[TimeControl "180+2"]
[Date "2023.04.04"]
[WhiteClock "0:00:22"]
[BlackClock "0:01:53"]

1. e4 {[%clk 0:02:56]}  d6 {[%clk 0:03:00]} 2. Nf3 {[%clk 0:02:54]}  Nf6 {[%clk 0:03:00]} 3. Nc3 {[%clk 0:02:54]}  Bg4 {[%clk 0:02:59]} 4. d4 {[%clk 0:02:52]}  e6 {[%clk 0:02:58]} 5. Be2 {[%clk 0:02:52]}  Be7 {[%clk 0:02:58]} 6. O-O {[%clk 0:02:51]}  d5 {[%clk 0:02:58]} 7. exd5 {[%clk 0:02:41]}  exd5 {[%clk 0:02:58]} 8. Bf4 {[%clk 0:02:42]}  c6 {[%clk 0:02:57]} 9. h3 {[%clk 0:02:37]}  Bf5 {[%clk 0:02:56]} 10. Ne5 {[%clk 0:02:29]}  O-O {[%clk 0:02:55]} 11. Bd3 {[%clk 0:02:27]}  Bxd3 {[%clk 0:02:54]} 12. Qxd3 {[%clk 0:02:27]}  Nbd7 {[%clk 0:02:50]} 13. Rfe1 {[%clk 0:02:26]}  Re8 {[%clk 0:02:49]} 14. Re2 {[%clk 0:02:24]}  Bb4 {[%clk 0:02:47]} 15. f3 {[%clk 0:02:15]}  Nxe5 {[%clk 0:02:43]} 16. Bxe5 {[%clk 0:02:09]}  Nd7 {[%clk 0:02:42]} 17. a3 {[%clk 0:02:01]}  Nxe5 {[%clk 0:02:40]} 18. dxe5 {[%clk 0:01:59]}  Bc5+ {[%clk 0:02:40]} 19. Kh1 {[%clk 0:01:58]}  Qg5 {[%clk 0:02:38]} 20. Rae1 {[%clk 0:01:54]}  Qg3 {[%clk 0:02:32]} 21. Na4 {[%clk 0:01:41]}  Bf8 {[%clk 0:02:18]} 22. Qd4 {[%clk 0:01:38]}  Re6 {[%clk 0:02:13]} 23. Qg4 {[%clk 0:01:34]}  Qxg4 {[%clk 0:02:10]} 24. hxg4 {[%clk 0:01:35]}  Rae8 {[%clk 0:02:09]} 25. g3 {[%clk 0:01:02]}  f6 {[%clk 0:02:08]} 26. f4 {[%clk 0:01:00]}  fxe5 {[%clk 0:02:08]} 27. fxe5 {[%clk 0:00:53]}  b5 {[%clk 0:02:03]} 28. Nc3 {[%clk 0:00:51]}  Bc5 {[%clk 0:02:03]} 29. Kg2 {[%clk 0:00:42]}  Bd4 {[%clk 0:02:03]} 30. Kf3 {[%clk 0:00:37]}  Rxe5 {[%clk 0:02:02]} 31. Rxe5 {[%clk 0:00:35]}  Rxe5 {[%clk 0:02:03]} 32. Rd1 {[%clk 0:00:33]}  Re3+ {[%clk 0:01:56]} 33. Kf4 {[%clk 0:00:32]}  Bb6 {[%clk 0:01:57]} 34. a4 {[%clk 0:00:25]}  d4 {[%clk 0:01:54]} 35. a5 {[%clk 0:00:22]}  Bc7+ {[%clk 0:01:53]} 0-1


[Site "https://www.chess.com"]